bitfinex/quotes_SOLUSD_20250518
["timestamp","ask_amount","ask_price","bid_price","bid_amount"]
[1747535631363,10.30863686,167.15,167.07,24.76541237]
[1747535631547,16.29092927,167.16,167.09,18.78]
[1747535632370,16.29092927,167.16,167.1,5.98444045]
[1747535633961,10.30863686,167.16,167.1,5.98444045]
[1747535634264,10.30863686,167.18,167.1,5.98444045]
[1747535634658,16.28985583,167.19,167.12,5.98372426]
[1747535634859,10.30863686,167.19,167.12,5.98372426]
[1747535635057,16.28986251,167.19,167.12,5.98372426]
[1747535644298,18.78,167.22,167.13,52.56544886]
[1747535644467,10.30863686,167.23,167.13,52.56544886]
[1747535644664,10.30863686,167.23,167.13,71.34544886]
[1747535644881,10.30863686,167.23,167.14,3.38782833]
[1747535645201,10.30863686,167.23,167.15,18.74]
[1747535645404,5.98014591,167.22,167.16,5.98229241]
[1747535646307,139.8256,167.26,167.16,31.98229241]
[1747535646509,10.30863686,167.25,167.17,18.64964886]
[1747535647607,16.2877101,167.25,167.18,5.98157674]
[1747535648286,10.30863686,167.24,167.17,5.98183833]
[1747535648505,10.30863686,167.22,167.15,18.74]
[1747535648808,10.30863686,167.21,167.15,18.74]
[1747535649505,5.98086124,167.2,167.15,18.74]
[1747535650001,16.28926305,167.21,167.15,24.72253971]
[1747535650706,16.28926305,167.21,167.15,18.74]
[1747535652105,10.30863686,167.19,167.13,20.2979]
[1747535652325,10.30863686,167.17,167.12,22.95570153]
[1747535652898,10.30863686,167.17,167.12,28.93937054]
[1747535654021,16.29058218,167.17,167.13,3.40176727]
[1747535655133,16.29058218,167.17,167.12,24.72366901]
[1747535655340,16.29058218,167.17,167.12,18.74]
[1747535655735,10.30863686,167.18,167.12,24.72362005]
[1747535655901,10.30863686,167.2,167.12,24.72362005]
[1747535656401,164.2,167.23,167.12,24.72362005]
[1747535656402,10.30863686,167.19,167.12,24.72362005]
[1747535657526,16.28993526,167.19,167.12,24.72362005]
[1747535657833,16.28993526,167.19,167.13,3.4013007]
[1747535658729,16.28993526,167.19,167.13,9.38442985]
[1747535659534,16.28993526,167.19,167.14,3.4013007]
[1747535660044,10.30863686,167.2,167.14,3.4013007]
[1747535660852,10.30863686,167.17,167.14,3.4013007]
[1747535661740,10.30863686,167.15,167.14,3.4013007]
[1747535662142,5.98300825,167.14,167.11,4.21570153]
[1747535663452,27.563,167.19,167.11,4.21570153]
[1747535663748,16.2902136,167.18,167.11,4.21570153]
[1747535664040,16.2902136,167.18,167.1,3.4013007]
[1747535664842,16.2902136,167.18,167.11,5.9840228]
[1747535665230,16.2902136,167.18,167.12,3.4013007]
[1747535665948,10.30863686,167.16,167.12,3.4013007]
[1747535666739,10.30863686,167.16,167.1,3.4013007]
[1747535667254,5.98265031,167.15,167.1,3.4013007]
[1747535667551,16.29128717,167.15,167.1,3.4013007]
[1747535669027,10.30863686,167.12,167.1,3.4013007]
[1747535669234,10.30863686,167.13,167.1,3.4013007]
[1747535669648,10.30863686,167.14,167.1,3.4013007]
[1747535670239,10.30863686,167.14,167.07,3.4013007]
[1747535670649,5.98336624,167.13,167.07,3.4013007]
[1747535670947,16.2920031,167.13,167.07,3.4013007]
[1747535671153,16.2920031,167.13,167.07,22.1413007]
[1747535671341,16.2920031,167.13,167.08,3.4013007]
[1747535672550,5.98336624,167.13,167.08,3.4013007]
[1747535674851,16.2920031,167.13,167.08,3.4013007]
[1747535675152,10.30863686,167.11,167.08,3.4013007]
[1747535675666,10.30863686,167.11,167.07,18.74]
[1747535676254,5.98444045,167.1,167.05,34.0359]
[1747535678256,5.98444045,167.1,167.05,8.0359]
[1747535678452,5.98408234,167.11,167.05,8.0359]
[1747535679954,5.98408234,167.11,167.05,14.02208552]
[1747535682250,5.98372426,167.12,167.05,14.02208552]
[1747535684574,5.98372426,167.12,167.05,8.0359]
[1747535684733,31.25167179,167.12,167.05,8.0359]
[1747535685060,10.30863686,167.11,167.05,8.0359]
[1747535686068,5.98444045,167.1,167.05,8.0359]
[1747535688871,5.98408234,167.11,167.05,14.02203804]
[1747535689163,16.2927192,167.11,167.04,44.7]
[1747535690578,10.30863686,167.1,167.04,44.7]
[1747535691259,10.30863686,167.1,167.01,24.68735096]
[1747535691451,10.30863686,167.06,167.0,7.9668]
[1747535691653,10.30863686,167.06,166.99,22.89570153]
[1747535691858,10.30863686,167.06,166.99,54.88399501]
[1747535692052,10.30863686,167.06,166.99,50.66829348]
[1747535692784,10.30863686,167.04,166.97,18.7]
[1747535692954,10.30863686,167.04,166.97,44.7]
[1747535695880,10.30863686,167.04,166.98,5.98874116]
[1747535696875,10.30863686,167.03,166.98,5.98874116]
[1747535697078,10.30863686,167.01,166.96,7.9668]
[1747535697374,10.30863686,167.02,166.96,26.6468]
[1747535697769,10.30863686,167.02,166.96,7.9668]
[1747535697977,16.29596409,167.02,166.96,32.63624343]
[1747535700381,10.30863686,167.0,166.95,5.98970974]
[1747535700680,10.30863686,166.98,166.93,18.68]
[1747535702359,10.30863686,166.98,166.93,24.67046125]
[1747535702681,10.30863686,166.98,166.93,5.99046125]
[1747535702865,16.29740705,166.98,166.93,5.99046125]
[1747535703064,16.29740705,166.98,166.92,20.2113]
[1747535703262,10.30863686,166.97,166.92,1.5313]
[1747535703571,5.98877019,166.98,166.91,6.1053]
[1747535703572,10.30863686,166.96,166.91,6.1053]
[1747535703778,10.30863686,166.96,166.91,12.09652921]
[1747535703966,16.29794548,166.97,166.91,12.09652921]
[1747535704381,5.9887209,166.99,166.91,12.09652921]
[1747535704585,16.29735776,166.99,166.91,12.09652921]
[1747535705086,26.0,167.01,166.92,18.64964886]
[1747535705087,5.98801496,167.01,166.92,18.64964886]
[1747535705289,16.29665182,167.01,166.92,18.64964886]
[1747535706073,16.29665182,167.01,166.93,5.99053495]
[1747535706257,10.30863686,167.01,166.94,20.18844886]
[1747535706456,138.2,167.03,166.94,20.18844886]
[1747535706661,10.30863686,167.02,166.95,18.68]
[1747535707565,16.29603076,167.02,166.96,5.98945855]
[1747535708286,144.18703168,167.03,166.96,5.98945855]
[1747535708470,138.2,167.03,166.96,5.98945855]
[1747535708673,154.49564083,167.03,166.96,5.98945855]
[1747535709384,35.01495873,167.05,166.97,51.17834886]
[1747535709699,44.46287252,167.07,166.99,18.64964886]
[1747535709864,28.1686421,167.07,166.99,18.64964886]
[1747535710064,28.1686421,167.07,167.01,18.64964886]
[1747535710296,28.1686421,167.07,167.01,63.34964886]
[1747535711281,34.15419789,167.07,167.01,63.34964886]
[1747535712000,28.1686421,167.07,167.02,6.5287]
[1747535712165,10.30863686,167.12,167.03,18.64964886]
[1747535712495,5.98411389,167.11,167.03,18.64964886]
[1747535712793,10.30863686,167.12,167.03,18.64964886]
[1747535713097,10.30863686,167.13,167.03,18.64964886]
[1747535713566,10.30863686,167.12,167.03,18.64964886]
[1747535713767,10.30863686,167.12,167.05,18.64964886]
[1747535714868,5.98393051,167.12,167.05,24.63562292]
[1747535719385,10.30863686,167.12,167.05,24.63562292]
[1747535720286,16.29257493,167.12,167.05,24.63562292]
[1747535722491,16.29257493,167.12,167.03,5.98694845]
[1747535722693,10.30863686,167.1,167.03,24.68694845]
[1747535723073,10.30863686,167.1,167.03,18.7]
[1747535723495,10.30863686,167.1,167.02,31.16555636]
[1747535723692,10.30863686,167.1,167.03,18.7]
[1747535724601,5.98479861,167.09,167.03,18.7]
[1747535725282,16.29343547,167.09,167.02,6.5287]
[1747535725482,10.30863686,167.08,167.02,6.5287]
[1747535725671,10.30863686,167.08,167.02,25.2087]
[1747535726279,10.30863686,167.08,167.02,6.5287]
[1747535726479,10.30863686,167.07,167.02,6.5287]
[1747535726704,16.2943268,167.07,167.02,6.5287]
[1747535728205,16.2943268,167.07,167.0,7.60432215]
[1747535728415,16.2943268,167.07,167.01,18.7]
[1747535728579,10.30863686,167.06,167.01,18.7]
[1747535729396,16.2943268,167.07,167.01,18.7]
[1747535735618,16.2943268,167.07,167.0,7.60421895]
[1747535735796,16.2943268,167.07,167.0,1.6163]
[1747535736418,10.30863686,167.04,166.98,50.7162]
[1747535736815,10.30863686,167.03,166.97,18.66]
[1747535737122,10.30863686,167.03,166.96,30.47046165]
[1747535737302,10.30863686,167.03,166.96,30.47045063]
[1747535737503,10.30863686,167.02,166.96,30.47045063]
[1747535737814,16.29626912,167.02,166.96,30.47045063]
[1747535737999,5.98763226,167.02,166.96,30.47045063]
[1747535738827,5.98763226,167.02,166.96,26.21644014]
[1747535741919,16.29569579,167.03,166.96,26.21644014]
[1747535742126,16.29451019,167.06,166.97,18.64964886]
[1747535742423,5.98587333,167.06,166.98,6.0286]
[1747535742599,16.29451019,167.06,166.98,6.0286]
[1747535743825,16.29451019,167.06,166.99,5.98838253]
[1747535746326,138.2,167.08,166.99,5.98838253]
[1747535746327,16.29419865,167.07,166.99,5.98838253]
[1747535746902,10.30863686,167.06,166.99,5.98838253]
[1747535747721,5.9859928,167.06,166.99,5.98838253]
[1747535747934,16.29424891,167.07,166.99,5.98838253]
[1747535751936,16.29424891,167.07,167.0,9.39219019]
[1747535753942,16.29424891,167.07,166.99,24.63803139]
[1747535755241,16.29475609,167.06,166.99,24.63803139]
[1747535755439,10.30863686,167.05,166.98,6.0286]
[1747535755743,10.30863686,167.03,166.97,22.89401049]
[1747535756644,10.30863686,167.03,166.97,28.8829913]
[1747535756824,10.30863686,167.05,166.98,3.41061213]
[1747535757015,16.29475609,167.06,166.98,3.41061213]
[1747535757419,16.29475609,167.06,166.99,5.98838253]
[1747535758028,10.30863686,167.05,166.99,5.98838253]
[1747535758642,5.98659003,167.04,166.98,24.62865235]
[1747535759737,16.29522689,167.04,166.98,18.64]
[1747535760051,16.29522689,167.04,166.99,3.41120085]
[1747535760649,10.30863686,167.03,166.99,3.41120085]
[1747535760824,5.9873069,167.02,166.99,3.41120085]
[1747535761552,5.9873069,167.02,166.98,18.64]
[1747535762254,5.9873069,167.02,166.96,56.4400878]
[1747535762433,5.9873069,167.02,166.96,31.80101049]
[1747535762632,5.9873069,167.02,166.96,4.25401049]
[1747535762633,10.30863686,166.99,166.96,4.25401049]
[1747535763046,10.30863686,166.98,166.93,4.25401049]
[1747535763238,10.30863686,166.99,166.93,4.25401049]
[1747535763426,16.29594376,167.02,166.94,18.64964886]
[1747535763629,5.9873069,167.02,166.94,18.64964886]
[1747535763824,16.29594376,167.02,166.94,18.64964886]
[1747535764255,16.29594376,167.02,166.95,3.41384128]
[1747535764637,10.30863686,166.99,166.95,3.41384128]
[1747535764963,10.30863686,166.98,166.95,3.41384128]
[1747535765666,10.30863686,167.0,166.95,3.41384128]
[1747535766483,20.95557417,167.02,166.92,18.64]
[1747535766484,10.30863686,166.99,166.92,18.64]
[1747535766786,16.29737802,166.98,166.91,20.2262]
[1747535767256,16.29737802,166.98,166.91,26.21741522]
[1747535767581,16.29737802,166.98,166.92,3.41512777]
[1747535767748,10.30863686,166.97,166.92,3.41512777]
[1747535768694,16.29737802,166.98,166.92,3.41512777]
[1747535768967,10.30863686,166.97,166.93,3.41512777]
[1747535769268,10.30863686,166.96,166.93,3.41512777]
[1747535769848,10.30863686,166.97,166.93,3.41512777]
[1747535770457,10.30863686,166.97,166.91,1.5862]
[1747535770965,16.29809541,166.96,166.9,32.3705]
[1747535772058,16.29809541,166.96,166.9,38.36196698]
[1747535775070,10.30863686,166.96,166.9,38.36196698]
[1747535775373,16.29778486,166.97,166.9,38.36196698]
[1747535775577,16.29745069,166.98,166.9,38.36196698]
[1747535776682,18.64,166.99,166.91,18.64964886]
[1747535776873,10.30863686,167.01,166.93,18.64964886]
[1747535777183,138.2,167.02,166.93,18.64964886]
[1747535777184,154.49603056,167.02,166.93,18.64964886]
[1747535777967,10.30863686,167.01,166.93,18.64964886]
[1747535778686,16.29631985,167.01,166.94,5.99017611]
[1747535778897,138.2,167.02,166.95,37.30964886]
[1747535779481,148.50863686,167.02,166.95,37.30964886]
[1747535780408,148.50863686,167.02,166.96,5.98945855]
[1747535780595,10.30863686,167.03,166.96,5.98945855]
[1747535782199,18.46526733,167.05,166.96,52.96870493]
[1747535782406,24.45154524,167.05,166.96,52.96870493]
[1747535782607,10.30863686,167.04,166.96,37.99505855]
[1747535783504,10.30863686,167.04,166.97,3.40221956]
[1747535783720,16.29546591,167.04,166.98,5.98874116]
[1747535785086,16.29546591,167.04,166.97,5.98909983]
[1747535790608,18.46526733,167.05,166.97,5.98909983]
[1747535791715,8.15663047,167.05,166.98,3.40244663]
[1747535792111,8.15663047,167.05,166.99,5.98838253]
[1747535792807,8.15663047,167.05,166.99,7.49348253]
[1747535793122,5.98593967,167.06,166.99,7.49348253]
[1747535795909,10.30863686,167.06,166.99,7.49348253]
[1747535797433,16.29486852,167.05,166.99,7.49348253]
[1747535800127,10.30863686,167.06,166.99,7.49348253]
[1747535800817,10.30863686,167.05,166.99,7.49348253]
[1747535800986,10.30863686,167.03,166.97,5.98875865]
[1747535801493,10.30863686,167.02,166.97,5.98875865]
[1747535802018,16.29597946,167.02,166.97,5.98875865]
[1747535802389,10.30863686,167.02,166.97,5.98875865]
[1747535802604,10.30863686,167.03,166.97,5.98875865]
[1747535803819,16.29531984,167.04,166.97,5.98875865]
[1747535805243,16.29531984,167.04,166.98,3.40916426]
[1747535805535,16.29531984,167.04,166.98,9.39781565]
[1747535806538,16.29531984,167.04,166.97,5.98909983]
[1747535806907,138.2,167.08,166.98,18.64964886]
[1747535807111,10.30863686,167.07,166.98,18.64964886]
[1747535807438,10.30863686,167.06,166.98,18.64964886]
[1747535807816,10.30863686,167.06,166.99,3.40813974]
[1747535808540,5.98623166,167.05,166.99,3.40813974]
[1747535808838,10.30863686,167.02,166.99,3.40813974]
[1747535809021,10.30863686,167.02,166.97,18.58]
[1747535809837,10.30863686,167.03,166.97,18.58]
[1747535810341,10.30863686,167.04,166.97,24.56908125]
[1747535810942,5.98694845,167.03,166.97,24.56908125]
[1747535811940,5.98694845,167.03,166.97,5.98908125]
[1747535812238,5.98694845,167.03,166.97,24.56908125]
[1747535815452,5.98694845,167.03,166.97,18.58]
[1747535816451,5.98694845,167.03,166.97,24.56905411]
[1747535816613,5.98694845,167.03,166.97,18.58]
[1747535817117,16.29558531,167.03,166.97,18.58]
[1747535819343,16.29558531,167.03,166.97,24.56897998]
[1747535819729,16.29558531,167.03,166.98,3.41665327]
[1747535820947,16.29558531,167.03,166.97,18.58]
[1747535823145,16.29558531,167.03,166.98,3.42540336]
[1747535824845,5.98694845,167.03,166.98,3.42540336]
[1747535825049,5.98694845,167.03,166.99,3.42540336]
[1747535826155,5.98587333,167.06,166.99,3.42540336]
[1747535826359,16.29451019,167.06,167.0,3.42540336]
[1747535827340,31.25919353,167.06,167.0,3.42540336]
[1747535827533,10.30863686,167.05,167.0,3.42540336]
[1747535828134,5.98659003,167.04,166.98,3.42540336]
[1747535829453,5.98659003,167.04,166.99,3.42540336]
[1747535831349,5.98659003,167.04,167.0,3.42540336]
[1747535832551,5.98659003,167.04,166.99,3.42540336]
[1747535834156,5.98659003,167.04,167.0,3.42540336]
[1747535834470,10.30863686,167.07,167.0,3.42540336]
[1747535834627,5.98551505,167.07,167.0,9.41322319]
[1747535834829,16.29415191,167.07,167.0,9.41322319]
[1747535835046,16.29415191,167.07,167.0,3.42540336]
[1747535835246,6.60462525,167.06,167.0,3.42540336]
[1747535835449,6.60462525,167.06,167.01,3.42540336]
[1747535836843,5.98623166,167.05,167.0,3.42540336]
[1747535838159,5.98623166,167.05,167.01,3.42540336]
[1747535838851,16.30671191,167.05,167.01,3.42540336]
[1747535839561,16.30671191,167.05,167.0,3.42540336]
[1747535840035,5.98623166,167.05,167.0,3.42540336]
[1747535841174,5.98623166,167.05,167.01,3.42540336]
[1747535842664,5.98623166,167.05,167.0,3.42540336]
[1747535843940,5.98623166,167.05,167.01,3.42540336]
[1747535845666,5.98623166,167.05,167.0,3.42540336]
[1747535846970,10.32048025,167.04,167.0,3.42540336]
[1747535847870,5.98694845,167.03,167.0,3.42540336]
[1747535848850,10.32048025,167.02,167.0,3.42540336]
[1747535849675,16.3074287,167.03,166.97,3.42540336]
[1747535850171,16.3074287,167.03,166.98,3.42540336]
[1747535851773,16.3074287,167.03,166.97,3.42540336]
[1747535853377,10.32048025,167.06,166.98,18.64964886]
[1747535853676,16.3059953,167.07,166.98,22.07505222]
[1747535854480,10.32048025,167.04,166.98,3.42540336]
[1747535854664,10.32048025,167.01,166.98,3.42540336]
[1747535854864,10.32048025,167.0,166.98,3.42540336]
[1747535855059,10.32048025,167.0,166.99,7.67941385]
[1747535856272,10.32048025,167.0,166.99,4.25401049]
[1747535856579,16.3085042,167.0,166.99,4.25401049]
[1747535857970,16.3085042,167.0,166.95,3.42540336]
[1747535858172,10.32048025,166.99,166.95,3.42540336]
[1747535858371,10.32048025,166.98,166.95,3.42540336]
[1747535860082,16.30946001,166.98,166.95,3.42540336]
[1747535862279,5.98897976,166.98,166.95,3.42540336]
[1747535864997,1.647,167.03,166.95,3.42540336]
[1747535865165,10.32048025,166.99,166.95,3.42540336]
[1747535865662,10.32048025,166.98,166.95,3.42540336]
[1747535866865,16.30951964,166.98,166.95,3.42540336]
[1747535867300,5.98903939,166.98,166.95,3.42540336]
[1747535868181,5.98903939,166.98,166.94,1.5952]
[1747535869992,16.30951964,166.98,166.92,50.9618]
[1747535870239,16.30951964,166.98,166.92,69.5418]
[1747535871210,16.30951964,166.98,166.93,3.42714154]
[1747535872122,16.30951964,166.98,166.92,69.5418]
[1747535872300,16.30951964,166.98,166.92,75.53262367]
[1747535872820,5.98903939,166.98,166.92,75.53262367]
[1747535874807,5.98903939,166.98,166.92,69.5418]
[1747535875003,16.30951964,166.98,166.92,69.5418]
[1747535876123,16.30951964,166.98,166.92,50.9618]
[1747535877227,12.60006671,166.98,166.92,50.9618]
[1747535877430,6.61102732,166.98,166.92,50.9618]
[1747535878131,6.61102732,166.98,166.92,56.95265081]
[1747535878337,6.61102732,166.98,166.93,3.42326571]
[1747535878630,6.61102732,166.99,166.93,3.42326571]
[1747535879426,5.98874116,166.98,166.93,3.42326571]
[1747535880041,5.98874116,166.98,166.92,38.39265081]
[1747535880832,5.98874116,166.98,166.92,32.4018]
[1747535882911,12.59976848,166.98,166.92,32.4018]
[1747535883733,6.61102732,166.97,166.92,6.4018]
[1747535883924,6.61102732,166.95,166.9,1.5187]
[1747535885059,5.99017611,166.94,166.9,1.5187]
[1747535888536,20.96059407,166.98,166.9,1.5187]
[1747535888718,6.61102732,166.96,166.9,1.5187]
[1747535890740,5.98981731,166.95,166.9,1.5187]
[1747535893848,5.98981731,166.95,166.9,7.5101972]
[1747535894061,5.98950773,166.96,166.9,7.5101972]
[1747535894259,5.98950773,166.96,166.91,3.42745667]
[1747535895155,5.98950773,166.96,166.91,9.41862798]
[1747535896055,5.98950773,166.96,166.91,5.99117131]
[1747535896352,5.98950773,166.96,166.9,1.5187]
[1747535896353,12.60053505,166.96,166.9,7.51024856]
[1747535899758,12.60053505,166.96,166.91,3.43187418]
[1747535900948,6.61102732,166.95,166.91,3.43187418]
[1747535901447,6.61102732,166.95,166.9,1.5187]
[1747535902573,5.99017611,166.94,166.89,9.20511073]
[1747535902762,6.61102732,166.9,166.89,9.20511073]
[1747535903967,12.60263906,166.9,166.89,9.20511073]
[1747535904442,27.58166841,166.9,166.83,4.28133725]
[1747535904762,6.61102732,166.86,166.83,4.28133725]
[1747535905167,6.61102732,166.85,166.83,4.28133725]
[1747535905344,10.34544442,166.85,166.83,4.28133725]
[1747535905763,16.3389077,166.85,166.83,4.28133725]
[1747535905962,10.34544442,166.84,166.83,4.28133725]
[1747535907775,16.3392109,166.84,166.83,4.28133725]
[1747535908263,31.3236271,166.84,166.75,8.1279]
[1747535908467,10.34544442,166.8,166.75,8.1279]
[1747535908774,10.34544442,166.82,166.75,14.12480757]
[1747535909141,10.34544442,166.82,166.75,32.77445643]
[1747535910469,10.34544442,166.82,166.76,18.58]
[1747535910859,10.34544442,166.81,166.76,18.58]
[1747535911064,10.34544442,166.81,166.75,8.1279]
[1747535911065,10.34544442,166.8,166.75,8.1279]
[1747535912470,16.34095051,166.8,166.75,8.1279]
[1747535913252,10.34544442,166.77,166.71,7.9676]
[1747535913467,10.34544442,166.76,166.71,7.9676]
[1747535913969,10.34544442,166.77,166.71,7.9676]
[1747535914172,10.34544442,166.77,166.71,13.96597004]
[1747535914473,16.3420863,166.76,166.71,7.9676]
[1747535914651,10.34544442,166.75,166.71,7.9676]
[1747535914851,10.34544442,166.75,166.69,18.58]
[1747535915464,10.34544442,166.74,166.68,26.0]
[1747535915654,5.99664188,166.76,166.67,26.5476]
[1747535915655,10.34544442,166.73,166.67,26.5476]
[1747535916160,10.34544442,166.74,166.67,32.54733536]
[1747535916363,10.34544442,166.73,166.67,26.5476]
[1747535916756,10.34544442,166.71,166.67,7.9676]
[1747535918382,5.99700149,166.75,166.67,13.96735005]
[1747535918566,10.34544442,166.74,166.67,13.96735005]
[1747535918755,16.34244591,166.75,166.67,13.96735005]
[1747535919974,10.34544442,166.75,166.69,5.99916011]
[1747535920180,154.54210256,166.76,166.69,5.99916011]
[1747535920359,10.34544442,166.75,166.69,5.99916011]
[1747535921158,10.34544442,166.75,166.68,24.64916889]
[1747535922672,10.34544442,166.73,166.67,13.96737387]
[1747535922970,10.34544442,166.72,166.67,7.9676]
[1747535923176,10.34544442,166.71,166.67,7.9676]
[1747535924056,16.34396193,166.71,166.67,7.9676]
[1747535925075,5.99851751,166.71,166.66,18.62]
[1747535925271,10.34544442,166.7,166.66,18.62]
[1747535925458,5.99851751,166.71,166.66,18.62]
[1747535925459,10.34544442,166.71,166.66,18.62]
[1747535926780,16.34392973,166.71,166.66,18.62]
[1747535927976,16.34392973,166.71,166.64,9.21892061]
[1747535928175,10.34544442,166.7,166.64,27.81892061]
[1747535928376,10.34544442,166.7,166.64,9.21892061]
[1747535928583,10.34544442,166.7,166.64,18.62]
[1747535928779,10.34544442,166.7,166.63,39.79094128]
[1747535928964,10.34544442,166.67,166.63,7.7897]
[1747535929162,10.34544442,166.67,166.63,1.628]
[1747535929778,10.34544442,166.66,166.63,1.628]
[1747535930566,10.34544442,166.66,166.61,37.2]
[1747535930972,16.34536992,166.67,166.61,18.62]
[1747535931181,16.34536992,166.67,166.61,24.62170263]
[1747535932282,10.34544442,166.67,166.61,6.00170263]
[1747535933262,16.34522334,166.68,166.61,24.62170263]
[1747535936274,10.34544442,166.67,166.61,18.62]
[1747535936891,10.34544442,166.67,166.61,24.62200007]
[1747535937388,10.34544442,166.67,166.61,18.62]
[1747535937622,5.99977892,166.68,166.59,1.5644]
[1747535937623,10.34544442,166.63,166.59,1.5644]
[1747535937767,6.00204069,166.61,166.56,43.5221]
[1747535938102,16.34748511,166.61,166.56,24.9221]
[1747535938276,16.34748511,166.61,166.56,6.2821]
[1747535938979,10.34544442,166.61,166.56,6.2821]
[1747535939283,10.34544442,166.61,166.56,12.28590833]
[1747535939481,10.34544442,166.61,166.56,6.2821]
[1747535939681,10.34544442,166.6,166.55,20.1979]
[1747535940388,16.34765554,166.61,166.55,26.2019729]
[1747535941378,10.34544442,166.6,166.55,20.1979]
[1747535942807,16.34809218,166.6,166.55,1.5579]
[1747535944174,6.00264776,166.6,166.55,1.5579]
[1747535944579,16.34809218,166.6,166.55,1.5579]
[1747535946211,15.00384111,166.63,166.55,1.5579]
[1747535946711,10.34544442,166.61,166.55,1.5579]
[1747535947079,10.34544442,166.59,166.55,1.5579]
[1747535947283,10.34544442,166.59,166.53,18.64]
[1747535948713,6.00312162,166.58,166.53,18.64]
[1747535949020,6.00312162,166.58,166.52,24.9221]
[1747535949220,16.34856604,166.58,166.52,24.9421]
[1747535949512,16.34856604,166.58,166.52,6.2821]
[1747535951015,16.34856604,166.58,166.52,12.28737972]
[1747535952708,16.34830818,166.59,166.52,12.28737972]
[1747535952905,10.34544442,166.6,166.53,18.64964886]
[1747535953219,10.34544442,166.61,166.53,18.64964886]
[1747535953394,33.62294326,166.64,166.55,18.64964886]
[1747535953395,6.00132029,166.63,166.55,18.64964886]
[1747535953602,16.34676471,166.63,166.55,18.64964886]
[1747535953999,6.00132029,166.63,166.55,18.64964886]
[1747535954201,14.99762931,166.7,166.59,18.64964886]
[1747535954397,10.34544442,166.69,166.61,18.64964886]
[1747535954603,10.34544442,166.68,166.61,18.64964886]
[1747535954919,40.99762931,166.7,166.61,24.65161043]
[1747535954920,10.34544442,166.67,166.61,24.65161043]
[1747535956417,16.34543436,166.67,166.61,24.65161043]
[1747535965028,5.99998994,166.67,166.61,24.65161043]
[1747535969232,165.8266,166.72,166.62,7.6981]
[1747535969233,10.34544442,166.72,166.62,7.6981]
[1747535969535,10.34544442,166.72,166.62,11.12928943]
[1747535970030,10.34544442,166.72,166.64,18.64964886]
[1747535971325,5.9984404,166.71,166.65,6.00060006]
[1747535971741,5.9962823,166.77,166.68,26.0]
[1747535971942,10.34544442,166.75,166.68,26.0]
[1747535972931,16.34253567,166.75,166.69,5.99916011]
[1747535973624,5.99709125,166.75,166.69,5.99916011]
[1747535975221,5.9962823,166.77,166.69,5.99916011]
[1747535975421,51.87839198,166.78,166.7,18.64964886]
[1747535975913,62.2238364,166.78,166.7,18.64964886]
[1747535976314,10.34544442,166.77,166.71,5.9984404]
[1747535976611,10.34544442,166.77,166.7,18.64964886]
[1747535977914,16.34175332,166.77,166.7,24.64836264]
[1747535980918,5.9963089,166.77,166.7,24.64836264]
[1747535981244,16.34175332,166.77,166.7,24.64836264]
[1747535986524,51.87837796,166.78,166.7,24.64836264]
[1747535986730,45.88240119,166.78,166.72,18.64964886]
[1747535986933,45.88240119,166.78,166.73,18.62]
[1747535987636,10.34544442,166.77,166.73,18.62]
[1747535988855,5.99664188,166.76,166.73,18.62]
[1747535989558,16.34184683,166.77,166.73,18.62]
[1747535990033,5.99640241,166.77,166.73,18.62]
[1747535991342,56.22784561,166.78,166.73,18.62]
[1747535991536,62.22388391,166.78,166.73,18.62]
[1747535991738,62.22388391,166.78,166.74,46.26174886]
[1747535991739,45.88240119,166.78,166.74,46.26174886]
[1747535991947,5.99376648,166.84,166.76,18.64964886]
[1747535992155,16.3392109,166.84,166.76,18.64964886]
[1747535993860,16.3392109,166.84,166.77,5.9962823]
[1747535995060,16.33957369,166.83,166.77,5.9962823]
[1747535996253,10.34544442,166.84,166.78,18.64964886]
[1747535996638,10.34544442,166.84,166.79,18.6]
[1747535997636,16.33926479,166.84,166.79,18.6]
[1747535998061,5.99382037,166.84,166.79,18.6]
[1747536002274,5.99382037,166.84,166.75,24.8925]
[1747536002275,10.34544442,166.8,166.75,24.8925]
[1747536002569,5.99382037,166.84,166.74,18.62]
[1747536002570,10.34544442,166.78,166.74,18.62]
[1747536002770,10.34544442,166.77,166.74,18.62]
[1747536003973,5.99664188,166.76,166.74,18.62]
[1747536004775,5.99664188,166.76,166.72,26.0]
[1747536004954,16.3420863,166.76,166.71,37.22]
[1747536005465,16.3420863,166.76,166.7,26.8374]
[1747536005466,10.34544442,166.75,166.7,26.8374]
[1747536006167,16.3420863,166.76,166.7,26.8374]
[1747536006956,16.3420863,166.76,166.7,32.83614568]
[1747536008047,16.3420863,166.76,166.7,26.8374]
[1747536009064,16.3420863,166.76,166.7,32.83618248]
[1747536009252,5.99664188,166.76,166.7,32.83618248]
[1747536009775,10.34544442,166.79,166.71,18.64964886]